lending/lending_fUSD_20250218
["ID","MTS","AMOUNT","RATE_DAILY","PERIOD"]
[353498474,1739886635946,-500.0,0.00020048,3]
[353498475,1739886635956,-500.0,0.00020048,3]
[353498476,1739886635966,-500.0,0.00020048,3]
[353498477,1739886635975,-500.0,0.00020048,3]
[353498478,1739886635984,-500.0,0.00020048,3]
[353498479,1739886635993,-500.0,0.00020048,3]
[353498480,1739886636002,-500.0,0.00020048,3]
[353498481,1739886636012,-500.0,0.00020048,3]
[353498482,1739886636022,-500.0,0.00020048,3]
[353498483,1739886636031,-500.0,0.00020048,3]
[353498484,1739886636040,-500.0,0.00020049,3]
[353498485,1739886636050,-500.0,0.00020049,3]
[353498486,1739886636059,-500.0,0.00020049,3]
[353498487,1739886636068,-500.0,0.00020049,3]
[353498488,1739886636077,-500.0,0.00020049,3]
[353498489,1739886636087,-500.0,0.00020049,3]
[353498490,1739886636096,-580.73,0.00020049,3]
[353498491,1739886636105,-500.0,0.00020049,3]
[353498492,1739886636115,-500.0,0.00020049,3]
[353498493,1739886636123,-500.0,0.00020049,3]
[353498494,1739886636133,-516.01,0.00020049,3]
[353498495,1739886636142,-1000.0,0.0002005,2]
[353498496,1739886636152,-279.74426224,0.0002005,2]
[353498497,1739886636161,-354.21322661,0.0002005,2]
[353498498,1739886636171,-1950.4665984,0.0002005,2]
[353498499,1739886636180,-47173.36690547,0.0002005,2]
[353498500,1739886636190,-523.76852392,0.0002005,2]
[353498501,1739886636199,-150.0,0.00020052,2]
[353498502,1739886636209,-1000.0,0.00020054,2]
[353498503,1739886636218,-150.0,0.00020055,2]
[353498504,1739886636227,-542.38,0.00020057,3]
[353498505,1739886636237,-500.0,0.00020057,3]
[353498506,1739886636246,-500.0,0.00020057,3]
[353498507,1739886636255,-500.0,0.00020057,3]
[353498508,1739886636265,-500.0,0.00020057,3]
[353498509,1739886636275,-526.58,0.00020057,3]
[353498510,1739886636284,-500.0,0.00020057,3]
[353498511,1739886636294,-437.6396831,0.00020057,3]
[353498512,1739886636304,-505.33264571,0.00020057,3]
[353498513,1739886636313,-367.09384496,0.00020057,3]
[353498514,1739886636322,-500.0,0.00020057,3]
[353498515,1739886636331,-500.0,0.00020057,3]
[353498516,1739886636341,-500.0,0.00020057,3]
[353498517,1739886636351,-500.0,0.00020057,3]
[353498518,1739886636360,-500.0,0.00020057,3]
[353498519,1739886636369,-500.0,0.00020057,3]
[353498520,1739886636378,-505.2879997,0.00020057,3]
[353498521,1739886636388,-500.0,0.00020057,3]
[353498522,1739886636398,-500.0,0.00020057,3]
[353498523,1739886636407,-500.0,0.00020057,3]
[353498524,1739886636417,-472.47249838,0.00020057,3]
[353498525,1739886636426,-518.66056122,0.00020057,3]
[353498526,1739886636436,-500.0,0.00020057,3]
[353498527,1739886636445,-500.0,0.00020057,3]
[353498528,1739886636455,-559.73,0.00020057,3]
[353498529,1739886636464,-500.0,0.00020057,3]
[353498530,1739886636473,-538.52,0.00020057,3]
[353498531,1739886636483,-500.0,0.00020057,3]
[353498532,1739886636492,-500.0,0.00020057,3]
[353498533,1739886636502,-523.5,0.00020057,3]
[353498534,1739886636511,-508.01865369,0.00020057,3]
[353498535,1739886636520,-500.0,0.00020057,3]
[353498536,1739886636529,-500.0,0.00020057,3]
[353498537,1739886636539,-612.03,0.00020057,3]
[353498538,1739886636548,-590.37,0.00020057,3]
[353498539,1739886636558,-500.0,0.00020057,3]
[353498540,1739886636567,-500.0,0.00020057,3]
[353498541,1739886636576,-633.0,0.00020057,3]
[353498542,1739886636585,-603.72,0.00020057,3]
[353498543,1739886636595,-500.0,0.00020057,3]
[353498544,1739886636604,-500.0,0.00020057,3]
[353498545,1739886636614,-500.0,0.00020057,3]
[353498546,1739886636623,-604.26875464,0.00020057,3]
[353498547,1739886636632,-500.0,0.00020057,3]
[353498548,1739886636643,-500.0,0.00020057,3]
[353498549,1739886636652,-500.0,0.00020057,3]
[353498550,1739886636664,-500.0,0.00020057,3]
[353498551,1739886636674,-500.0,0.00020057,3]
[353498552,1739886636683,-500.0,0.00020057,3]
[353498553,1739886636692,-500.0,0.00020057,3]
[353498554,1739886636701,-500.0,0.00020057,3]
[353498555,1739886636711,-500.0,0.00020057,3]
[353498556,1739886636720,-500.0,0.00020057,3]
[353498557,1739886636729,-500.0,0.00020057,3]
[353498558,1739886636740,-500.0,0.00020057,3]
[353498559,1739886636750,-500.0,0.00020057,3]
[353498560,1739886636759,-3824.9179,0.00020059,2]
[353498561,1739886636769,-150.0,0.0002006,2]
[353498562,1739886636779,-150.0,0.00020064,2]
[353498563,1739886636788,-150.0,0.00020067,2]
[353498564,1739886636797,-221.0,0.00020069,2]
[353498565,1739886636806,-2000.0,0.00020072,2]
[353498566,1739886636816,-150.0,0.00020077,2]
[353498567,1739886636826,-150.0,0.00020079,2]
[353498568,1739886636835,-150.0,0.0002008,2]
[353498569,1739886636845,-150.0,0.0002009,2]
[353498570,1739886636854,-150.0,0.00020096,2]
[353498571,1739886636863,-150.0,0.00020096,2]
[353498572,1739886636872,-159.0,0.000201,2]
[353498573,1739886636882,-150.0,0.00020109,2]
[353498574,1739886636892,-573.87,0.00020112,3]
[353498575,1739886636901,-174.25,0.00020112,3]
[353498576,1739886636911,-221.79,0.00020112,3]
[353498577,1739886636920,-150.73,0.00020112,3]
[353498578,1739886636929,-20230.57789287,0.0002012,3]
[353498587,1739886638277,-158.258,0.00015126,2]
[353498588,1739886638287,-99.24746521,0.00020019,2]
[353498589,1739886638394,-3079.73617222,0.00020019,2]
[353498590,1739886638406,-910.04997864,0.00020019,2]
[353498591,1739886638416,-2922.05184365,0.0002012,3]
[353498592,1739886638454,-521.74533198,0.0002012,3]
[353498593,1739886638465,-505.25345414,0.0002012,3]
[353498594,1739886638521,-3767.27899363,0.0002012,3]
[353498595,1739886638532,-33851.64718728,0.0002012,3]
[353498596,1739886638543,-8775.99133458,0.0002012,3]
[353498748,1739886640298,-449.81,0.00020029,3]
[353498749,1739886640308,-3320.58230764,0.0002012,3]
[353498750,1739886640320,-3933.36463944,0.0002012,3]
[353498751,1739886640331,-1740.09140686,0.0002012,3]
[353498754,1739886640358,-5802.7092032,0.0002012,3]
[353498757,1739886640370,-3979.48707362,0.0002012,3]
[353498759,1739886640381,-419.77238971,0.0002012,3]
[353498761,1739886640393,-1656.58520388,0.0002012,3]
[353498763,1739886640404,-9446.3636837,0.0002012,3]
[353498776,1739886640529,-607.64675005,0.0002012,3]
[353498778,1739886640540,-1438.54768027,0.0002012,3]
[353498781,1739886640551,-17342.21836858,0.0002012,3]
[353498799,1739886640725,-1424.0,0.0002012,3]
[353498801,1739886640738,-276.91061512,0.0002012,3]
[353498802,1739886640749,-1775.96541637,0.0002012,3]
[353498803,1739886640764,-4403.14807489,0.0002012,3]
[353498804,1739886640776,-844.08472678,0.0002012,3]
[353498816,1739886643346,-2687.35999125,0.0002012,3]
[353498817,1739886643358,-816.924,0.0002012,3]
[353498818,1739886643369,-2346.3526878,0.0002012,3]
[353498819,1739886643380,-71044.92451771,0.0002012,3]
[353498820,1739886643390,-72300.9557573,0.0002012,3]
[353498821,1739886643399,-24100.3185858,0.0002012,3]
[353498822,1739886643408,-150.0,0.00020121,2]
[353498823,1739886643417,-14705.8274839,0.00020126,3]
[353498824,1739886643427,-150.0,0.00020126,2]
[353498825,1739886643437,-317.16,0.00020129,3]
[353498826,1739886643446,-19176.18308256,0.00020129,3]
[353498827,1739886643458,-20237.7693523,0.00020129,3]
[353498828,1739886643499,-748.63230573,0.00020129,3]
[353498829,1739886643510,-561.17,0.00020129,3]
[353498830,1739886643522,-411.19440317,0.00020129,3]
[353498831,1739886643533,-26018.25275243,0.00020129,3]
[353498832,1739886643545,-79905.07294281,0.00020129,3]
[353498833,1739886643554,-154399.90703843,0.00020129,3]
[353498845,1739886646251,-424.93824952,0.00020129,3]
[353498846,1739886646263,-797.2045167,0.00020129,3]
[353498847,1739886646276,-455.84,0.00020129,3]
[353498848,1739886646288,-1581.93781418,0.00020129,3]
[353498849,1739886646303,-2967.0000042,0.00020129,3]
[353498850,1739886646315,-680.44,0.00020129,3]
[353498851,1739886646327,-672.3,0.00020129,3]
[353498852,1739886646338,-5570.45453968,0.00020129,3]
[353498853,1739886646349,-18097.14060577,0.00020129,3]
[353498854,1739886646361,-1904.22084001,0.00020129,3]
[353498855,1739886646372,-50076.53338942,0.00020129,3]
[353498856,1739886646510,-7835.34319993,0.00020129,3]
[353498858,1739886646655,-943.17978662,0.00020129,3]
[353498861,1739886646675,-434.63359168,0.00020129,3]
[353498866,1739886647618,-12172.47349237,0.00020129,3]
[353498867,1739886647629,-414.86736611,0.00020129,3]
[353498868,1739886647640,-1189.33499715,0.00020129,3]
[353498869,1739886647652,-19322.36759999,0.00020129,3]
[353498870,1739886992953,353.94,8.767e-05,2]
[353498873,1739887423817,276.28,0.000205,120]
[353498874,1739887493412,-200.0,0.00012945,2]
[353498875,1739887493435,-200.0,0.00012954,2]
[353498886,1739887831532,-150.0,0.000142,2]
[353498887,1739887831542,-448.93662339,0.00014626,2]
[353498888,1739887831554,-551.06337661,0.00014626,2]
[353498889,1739887831563,-288.93662339,0.0001464,2]
[353498890,1739887831575,-938.64487722,0.0001464,2]
[353498891,1739887831584,-200.0,0.00014663,2]
[353498892,1739887831594,-732.0,0.00014682,2]
[353498893,1739887831604,-1000.0,0.0001474,2]
[353498894,1739887831613,-1000.0,0.00014774,2]
[353498895,1739887831623,-732.0,0.00014833,2]
[353498896,1739887831632,-732.0,0.00014985,2]
[353498897,1739887831642,-487.86368416,0.00015051,2]
[353498898,1739887831653,-269.31631584,0.00015051,2]
[353498899,1739887831663,-610.67,0.00015051,2]
[353498900,1739887831673,-150.0,0.00015051,2]
[353498901,1739887831683,-1000.0,0.00015063,2]
[353498902,1739887831693,-299.99,0.00015063,2]
[353498903,1739887831702,-150.99,0.00015063,2]
[353498904,1739887831711,-150.0,0.00015126,2]
[353498905,1739887831721,-150.0,0.00015126,2]
[353498906,1739887831730,-569.0,0.00015126,2]
[353498907,1739887831739,-638.0,0.00015126,2]
[353498908,1739887831748,-732.0,0.00015136,2]
[353498909,1739887831757,-596.25691659,0.00015136,2]
[353498910,1739887831766,-1000.0,0.00015175,2]
[353498911,1739887831775,-732.0,0.00015287,2]
[353498912,1739887831785,-732.0,0.00015439,2]
[353498913,1739887831794,-289.79,0.00015467,2]
[353498914,1739887831803,-1000.0,0.00015505,2]
[353498915,1739887831812,-353.94,0.00015516,2]
[353498917,1739887831822,-732.0,0.0001559,2]
[353498919,1739887831831,-200.0,0.0001562,2]
[353498920,1739887831840,-500.0,0.00016337,2]
[353498923,1739887831849,-500.0,0.00016337,2]
[353498925,1739887831858,-500.0,0.00016337,2]
[353498927,1739887831868,-176.46,0.00016712,2]
[353498928,1739887831877,-1412.59984272,0.00017369,2]
[353498931,1739887831888,-961.25,0.00017369,2]
[353498933,1739887831900,-6636.71015728,0.00017369,2]
[353498935,1739887831909,-1000.0,0.00017389,2]
[353498937,1739887831918,-280.0,0.00017596,2]
[353498938,1739887831929,-156.94,0.00017596,2]
[353498939,1739887831939,-500.0,0.00017707,2]
[353498940,1739887831948,-500.0,0.00017707,2]
[353498941,1739887831958,-289.79,0.00017731,2]
[353498942,1739887831968,-600.0,0.00017808,2]
[353498943,1739887831977,-156.94,0.00018093,2]
[353498944,1739887831987,-150.0,0.00018126,2]
[353498945,1739887831995,-150.0,0.00018126,2]
[353498946,1739887832005,-344.2,0.00018279,2]
[353498948,1739887832014,-1000.0,0.00018521,2]
[353498950,1739887832023,-156.94,0.00018589,2]
[353498954,1739887832032,-154.58,0.000186,2]
[353498957,1739887832041,-203.64,0.00018618,2]
[353498960,1739887832054,-500.0,0.00018803,2]
[353498963,1739887832062,-500.0,0.00018803,2]
[353498966,1739887832071,-181.79,0.00018918,2]
[353498969,1739887832080,-500.0,0.00019077,2]
[353498971,1739887832090,-156.94,0.00019085,2]
[353498973,1739887832099,-163.41,0.00019142,2]
[353498974,1739887832108,-200.0,0.000192,2]
[353498977,1739887832116,-1000.0,0.000193,2]
[353498981,1739887832126,-673.9,0.00019363,30]
[353498984,1739887832136,-440.17,0.00019402,2]
[353498987,1739887832145,-1337.27,0.00019402,2]
[353498990,1739887832155,-440.17,0.00019402,2]
[353498992,1739887832164,-440.17,0.00019402,2]
[353498994,1739887832174,-440.17,0.00019402,2]
[353498996,1739887832187,-504.0,0.00019534,2]
[353498997,1739887832197,-1000.0,0.00019562,2]
[353498999,1739887832206,-156.94,0.00019581,2]
[353499002,1739887832216,-1000.0,0.000196,2]
[353499004,1739887832226,-152.74,0.000196,31]
[353499006,1739887832236,-152.74,0.000196,31]
[353499008,1739887832246,-152.74,0.000196,31]
[353499010,1739887832255,-152.74,0.000196,31]
[353499011,1739887832265,-152.74,0.000196,31]
[353499013,1739887832274,-152.74,0.000196,31]
[353499015,1739887832284,-152.74,0.000196,31]
[353499018,1739887832294,-300.0,0.00019673,2]
[353499019,1739887832303,-3000.0,0.000197,2]
[353499022,1739887832313,-2500.0,0.00019812,10]
[353499023,1739887832323,-2009.942,0.00019858,2]
[353499025,1739887832332,-187.698,0.00019858,2]
[353499027,1739887832342,-26558.7819,0.00019859,2]
[353499029,1739887832352,-1000.0,0.00019859,2]
[353499032,1739887832362,-500.0,0.00019899,2]
[353499034,1739887832372,-500.0,0.00019899,2]
[353499036,1739887832382,-265.29,0.000199,7]
[353499037,1739887832392,-1000.0,0.0001993,2]
[353499040,1739887832404,-221.0,0.00019957,2]
[353499042,1739887832413,-500.0,0.00019977,2]
[353499044,1739887832423,-500.0,0.00019988,2]
[353499046,1739887832436,-289.79,0.00019994,2]
[353499048,1739887832446,-193.87266841,0.00019999,21]
[353499050,1739887832456,-10000.0,0.0002,2]
[353499051,1739887832466,-61453.95098231,0.0002,3]
[353499053,1739887832476,-47269.72417415,0.0002,2]
[353499055,1739887832486,-150.0,0.0002001,2]
[353499057,1739887832497,-2500.0,0.0002002,10]
[353499059,1739887832506,-3816.43137512,0.00020058,2]
[353499061,1739887832517,-5000.0,0.00020067,2]
[353499063,1739887832526,-2000.0,0.00020072,2]
[353499065,1739887832536,-1000.0,0.00020075,2]
[353499068,1739887832545,-156.94,0.00020077,2]
[353499069,1739887832555,-718.5914,0.00020078,7]
[353499071,1739887832564,-3071.93982457,0.00020078,3]
[353499073,1739887832574,-159.0,0.000201,2]
[353499075,1739887832584,-10000.0,0.00020107,2]
[353499078,1739887832594,-200.0,0.00020107,2]
[353499079,1739887832604,-500.0,0.00020117,3]
[353499082,1739887832615,-547.93,0.00020117,3]
[353499084,1739887832625,-258.79,0.00020117,3]
[353499085,1739887832634,-232.59,0.00020117,3]
[353499087,1739887832644,-468.22,0.00020117,3]
[353499090,1739887832654,-500.0,0.00020117,3]
[353499091,1739887832664,-500.0,0.00020118,3]
[353499093,1739887832674,-340.26,0.00020118,3]
[353499096,1739887832688,-347.87,0.00020118,3]
[353499097,1739887832697,-500.00000001,0.00020119,3]
[353499100,1739887832707,-320.32,0.00020119,3]
[353499101,1739887832716,-3175.13494,0.00020126,2]
[353499104,1739887832726,-163.0,0.00020129,3]
[353499106,1739887832736,-200.0,0.00020129,2]
[353499108,1739887832746,-1000.0,0.00020144,2]
[353499110,1739887832757,-66133.7463638,0.00020148,3]
[353499112,1739887832767,-500.0,0.00020149,2]
[353499113,1739887832777,-154.58,0.0002015,2]
[353499115,1739887832787,-1861.08,0.0002015,2]
[353499117,1739887832796,-150.0,0.0002015,5]
[353499119,1739887832807,-246.2267981,0.00020154,2]
[353499121,1739887832816,-260.9518947,0.00020154,2]
[353499123,1739887832825,-275.6769913,0.00020154,2]
[353499125,1739887832835,-290.402088,0.00020154,2]
[353499127,1739887832845,-305.1271846,0.00020154,2]
[353499129,1739887832855,-322.2427429,0.00020154,2]
[353499132,1739887832865,-341.5138197,0.00020154,2]
[353499133,1739887832874,-360.7848965,0.00020154,2]
[353499135,1739887832884,-380.0559732,0.00020154,2]
[353499137,1739887832894,-399.32705,0.00020154,2]
[353499139,1739887832904,-453.0686112,0.00020154,2]
[353499141,1739887832913,-480.1634649,0.00020154,2]
[353499143,1739887832922,-507.2583187,0.00020154,2]
[353499145,1739887832936,-534.3531724,0.00020154,2]
[353499147,1739887832945,-561.4480262,0.00020154,2]
[353499149,1739887832955,-369.5758553,0.00020156,2]
[353499151,1739887832965,-26453.4985455,0.00020157,3]
[353499153,1739887832975,-66133.7463638,0.00020157,3]
[353499155,1739887832984,-23425.5106304,0.00020157,3]
[353499157,1739887832994,-185174.489819,0.00020157,3]
[353499160,1739887833004,-281106.127565,0.00020157,3]
[353499162,1739887833013,-1500.0,0.00020161,5]
[353499164,1739887833023,-231.5017014,0.00020163,2]
[353499166,1739887833033,-302.9716661,0.00020163,2]
[353499168,1739887833043,-425.9737574,0.00020163,2]
[353499169,1739887833057,-131252.74425665,0.00020167,3]
[353499171,1739887833067,-23425.5106304,0.00020168,3]
[353499173,1739887833077,-22859.9154734,0.00020168,14]
[353499176,1739887833091,-742.99122832,0.00020168,14]
[353499178,1739887833102,-335.73,0.00020168,14]
[353499180,1739887833114,-4586.06303229,0.00020168,14]
[353499320,1739887837381,-1713.56068351,0.00020168,14]
[353499321,1739887837413,-3379.26028201,0.00020168,14]
[353499322,1739887837425,-16382.47930047,0.00020168,14]
[353499323,1739887837435,-50000.0,0.00020168,16]
[353499324,1739887837445,-50000.0,0.00020168,18]
[353499325,1739887837454,-1195.32270658,0.00020168,20]
[353499326,1739887837465,-4757.28878183,0.00020168,20]
[353499327,1739887837477,-44047.38851159,0.00020168,20]
[353499328,1739887837486,-50000.0,0.00020168,12]
[353499329,1739887837497,-50000.0,0.00020168,10]
[353499330,1739887837507,-50000.0,0.00020168,8]
[353499331,1739887837516,-50000.0,0.00020168,13]
[353499332,1739887837526,-50000.0,0.00020168,11]
[353499333,1739887837535,-21059.48435351,0.00020168,9]
[353499334,1739887837547,-967.9538759,0.00020168,9]
[353499335,1739887837559,-9901.5,0.00020168,9]
[353499336,1739887837609,-13336.42233272,0.00020168,9]
[353499337,1739887837620,-4734.63943787,0.00020168,9]
[353499338,1739887837630,-8830.36056213,0.00020168,8]
[353499340,1739887837641,-20613.11336725,0.00020168,8]
[353499342,1739887837652,-20556.52607062,0.00020168,8]
[353499344,1739887837662,-205.0,0.0002017,2]
[353499346,1739887837671,-206.0,0.0002017,2]
[353499348,1739887837680,-200.0,0.0002017,2]
[353499350,1739887837690,-208.0,0.0002017,2]
[353499352,1739887837699,-200.0,0.0002017,2]
[353499353,1739887837708,-208.0,0.0002017,2]
[353499354,1739887837717,-208.0,0.0002017,2]
[353499355,1739887837727,-200.0,0.0002017,2]
[353499356,1739887837735,-300.45025137,0.0002017,2]
[353499358,1739887837745,-205.0,0.0002017,2]
[353499360,1739887837754,-208.0,0.0002017,2]
[353499362,1739887837764,-200.0,0.0002017,2]
[353499363,1739887837773,-1060.0,0.00020173,2]
[353499364,1739887837783,-981.0,0.00020173,14]
[353499365,1739887837792,-2000.0,0.00020174,2]
[353499366,1739887837801,-1152.0,0.00020177,2]
[353499367,1739887837811,-1425.39,0.00020177,2]
[353499368,1739887837820,-3151.59892475,0.00020177,3]
[353499369,1739887839426,-4213.90673472,0.00018125,2]
[353499370,1739887839435,-5892.2286553,0.00020177,3]
[353499371,1739887839447,-34848.9671063,0.00020177,3]
[353499372,1739887839458,-21733.57744198,0.00020177,3]
[353499373,1739887839467,-752.29384961,0.00020178,2]
[353499374,1739887839479,-46517.43032454,0.00020178,2]
[353499375,1739887839488,-106706.4462803,0.00020178,40]
[353499376,1739887839561,-116260.23823978,0.00020178,40]
[353499377,1739887839573,-3558.68873447,0.00020178,40]
[353499378,1739887839585,-268793.87881797,0.00020178,40]
[353499379,1739887839597,-426.27815651,0.00020178,40]
[353499380,1739887839753,-576.66674185,0.00020178,40]
[353499381,1739887839850,-1346134.75841833,0.00020178,40]
[353499382,1739887839861,-856089.97727306,0.00020178,40]
[353499383,1739887839873,-340.726078,0.00020178,40]
[353499408,1739887842446,-1043.0,0.00020177,2]
[353499410,1739887842455,-3144.41131521,0.00020178,40]
[353499411,1739887842532,-917.9307743,0.00020178,40]
[353499412,1739887842544,-234304.97998124,0.00020178,40]
[353499413,1739887842556,-338709.00806492,0.00020178,40]
[353499414,1739887842574,-1436.64845719,0.00020178,40]
[353499415,1739887842667,-20093.17166066,0.00020178,40]
[353499416,1739887842759,-9335.21409544,0.00020178,40]
[353499419,1739887842772,-7862.01803586,0.00020178,40]
[353499448,1739887845472,-11772.53189839,0.00020178,40]
[353499449,1739887845552,-1146.96815462,0.00020178,40]
[353499450,1739887845563,-67491.76278861,0.00020178,40]
[353499451,1739887845651,-1490.21645,0.00020178,40]
[353499452,1739887845662,-102762.9383615,0.00020178,40]
[353499453,1739887845676,-495.193653,0.00020178,40]
[353499464,1739887928471,157.370126,0.00013698,2]
[353499465,1739887938145,155.089979,0.00013698,2]
[353499466,1739887945698,150.0,0.00014,2]
[353499467,1739887946003,157.99011,0.00013698,2]
[353499468,1739887974290,155.235575,0.00013698,2]
[353499469,1739887974596,155.235575,0.00013863,2]
[353499470,1739887988324,154.197859,0.00013698,2]
[353499471,1739887988680,154.197859,0.00013863,2]
[353499472,1739887995601,158.9,8.767e-05,2]
[353499473,1739887997887,156.888054,0.00013698,2]
[353499475,1739888033687,157.677125,0.00013698,2]
[353499476,1739888050332,163.542708,0.00013698,2]
[353499477,1739888050683,163.542708,0.00013698,2]
[353499478,1739888051075,163.542708,0.00013863,2]
[353499479,1739888051327,163.542708,0.00013945,2]
[353499480,1739888093378,166.533101,0.00013698,2]
[353499481,1739888093619,166.533101,0.0001378,2]
[353499482,1739888093952,166.533101,0.00013863,2]
[353499483,1739888130029,150.0,0.00014,2]
[353499484,1739888153292,156.793472,0.00013698,2]
[353499485,1739888168805,155.913355,0.00013698,2]
[353499486,1739888393765,166.533101,0.00013698,2]
[353499487,1739888394089,166.533101,0.0001378,2]
[353499488,1739888394418,166.533101,0.00013863,2]
[353499489,1739888407511,163.542708,0.00013698,2]
[353499490,1739888407827,163.542708,0.00013698,2]
[353499491,1739888408174,163.542708,0.00013863,2]
[353499492,1739888408933,163.542708,0.00013945,2]
[353499493,1739888708981,7288.970641,0.0001,2]
[353499494,1739888709008,260000.0,0.0001,2]
[353499498,1739888806064,-3413.413162,9.95e-05,2]
[353499499,1739888806090,-1290843.493438,0.0001,2]
[353499512,1739888877489,-600.0,9.6e-05,3]
[353499513,1739888877517,-1200.0,9.7e-05,3]
[353499514,1739888877540,-1800.0,9.8e-05,3]
[353499515,1739888877563,-2500.0,9.9e-05,3]
[353499516,1739888877587,-300.0,9.999e-05,2]
[353499517,1739888877608,-150.0,9.999e-05,2]
[353499518,1739888877633,-3450.0,0.0001,2]
[353499519,1739888889092,-300.0,9.999e-05,2]
[353499520,1739888889116,-200.0,0.0001,2]
[353499521,1739888889139,-150.0,0.0001,2]
[353499522,1739888889163,-9350.0,0.0001,2]
[353499523,1739888903375,-10000.0,0.0001,2]
[353499524,1739888912515,-10000.0,0.0001,2]
[353499528,1739888921204,-10000.0,0.0001,2]
[353499529,1739888937219,-1000.0,0.0001,2]
[353499530,1739888944237,-2000.0,0.0001,2]
[353499531,1739888952380,-2000.0,0.0001,2]
[353499532,1739888965337,-1000.0,0.0001,2]
[353499548,1739889031696,-150.0,9.999e-05,2]
[353499549,1739889031705,-4390.42646416,0.0001,2]
[353499550,1739889031734,-1300.0,0.0001,2]
[353499551,1739889031746,-1054.30116172,0.0001,2]
[353499552,1739889031855,-13144.50005,0.0001,2]
[353499553,1739889031889,-19312.12142496,0.0001,2]
[353499554,1739889031912,-250.0,0.0001,2]
[353499555,1739889031922,-440.12893311,0.0001,2]
[353499556,1739889031938,-277.9276,0.0001,2]
[353499601,1739889037650,-494.2600002,0.0001,2]
[353499602,1739889037822,-171147.58626538,0.0001,2]
[353499603,1739889037834,-6858.36800368,0.0001,2]
[353499604,1739889037845,-1004.39699704,0.0001,2]
[353499605,1739889037862,-1744.37393871,0.0001,2]
[353499606,1739889037873,-3572027.32460339,0.0001,2]
[353499607,1739889037883,-276.25232927,0.0001,2]
[353499608,1739889037893,-181.72771251,0.0001,2]
[353499609,1739889037902,-3100.0,0.0001,3]
[353499610,1739889037912,-838.07831785,0.0001,2]
[353499611,1739889037921,-2522495.33944868,0.0001,2]
[353499612,1739889037931,-1852.48173502,0.0001,2]
[353499613,1739889037941,-214.74493061,0.0001,2]
[353499614,1739889037953,-2623.0580165,0.0001,2]
[353499615,1739889037974,-64329.57153361,0.0001,2]
[353499617,1739889037986,-1305.02725355,0.0001,2]
[353499619,1739889037995,-302.31820363,0.0001,2]
[353499621,1739889038004,-175.03163437,0.0001,2]
[353499623,1739889038013,-175.03163437,0.0001,2]
[353499625,1739889038023,-175.03163437,0.0001,2]
[353499627,1739889038032,-209.53266591,0.0001,2]
[353499629,1739889038041,-200.0,0.00010352,2]
[353499631,1739889038050,-257.38766062,0.000107,2]
[353499633,1739889038060,-771.19824313,0.000108,2]
[353499635,1739889038069,-759.87,0.00010959,2]
[353499636,1739889038078,-200.0,0.00010999,2]
[353499638,1739889038087,-150.0,0.00010999,2]
[353499640,1739889038096,-255.0,0.00010999,2]
[353499642,1739889038105,-127199.94435065,0.00011,2]
[353499644,1739889038115,-5285.79852045,0.00011,2]
[353499646,1739889038125,-200.0,0.00011,2]
[353499649,1739889038134,-8575.86011886,0.00011099,2]
[353499650,1739889038143,-2905.12466734,0.00011099,2]
[353499654,1739889038153,-838.0783178,0.00011939,2]
[353499656,1739889038162,-348.34,0.00012512,2]
[353499657,1739889038171,-1689.99,0.00013505,2]
[353499659,1739889038180,-16626.69997741,0.000136,2]
[353499661,1739889038189,-1076.95101292,0.000136,2]
[353499663,1739889038198,-168.59,0.00013805,2]